bitfinex-derivatives/quotes_ETHF0:USTF0_20250903
["timestamp","ask_amount","ask_price","bid_price","bid_amount"]
[1756912359121,1.63868242,4473.6,4472.7,3.2078]
[1756912359122,1.101,4472.8,4472.7,3.2078]
[1756912359422,1.63868242,4472.8,4472.7,1.69921845]
[1756912359626,1.63868242,4472.8,4472.7,2.02451845]
[1756912360723,1.63868242,4472.8,4472.7,2.47901845]
[1756912360918,1.63868242,4472.8,4472.7,1.79351845]
[1756912361123,1.63868242,4472.8,4472.7,1.37651845]
[1756912362031,1.63868242,4472.8,4472.7,1.69921845]
[1756912363022,1.63868242,4472.8,4472.7,1.46821845]
[1756912363223,1.63868242,4472.8,4472.7,1.69921845]
[1756912363425,1.31678242,4472.8,4472.7,2.02431845]
[1756912363724,0.53768242,4472.8,4472.7,2.48541845]
[1756912364116,0.4623,4473.2,4472.8,0.4611]
[1756912364321,0.7667,4473.2,4473.1,2.23611845]
[1756912364520,1.62686157,4473.2,4473.1,2.46711845]
[1756912365720,1.62686157,4473.2,4473.1,2.23611845]
[1756912365922,1.62686157,4473.2,4473.1,2.46711845]
[1756912367429,1.62686157,4473.2,4473.1,2.00601845]
[1756912369326,0.1788,4473.0,4472.5,3.2078]
[1756912369529,0.6267,4472.7,4472.6,0.5354]
[1756912369731,1.089,4472.7,4472.6,0.5354]
[1756912370029,1.62714499,4472.7,4472.6,0.5354]
[1756912370227,1.62714499,4472.7,4472.6,0.8605]
[1756912370428,1.62714499,4472.7,4472.6,1.3216]
[1756912371519,1.62714499,4472.7,4472.6,1.0906]
[1756912371724,1.62714499,4472.7,4472.6,1.3216]
[1756912372728,0.53814499,4472.7,4472.6,1.54517999]
[1756912373029,0.4623,4473.1,4473.0,0.6295]
[1756912373325,0.4623,4473.1,4473.0,2.46711845]
[1756912373523,1.0004926,4473.1,4473.0,2.46711845]
[1756912373725,1.6271926,4473.1,4473.0,1.0906]
[1756912374028,1.6271926,4473.1,4473.0,2.00601845]
[1756912374222,1.6271926,4473.1,4473.0,2.23611845]
[1756912374422,1.6271926,4473.1,4473.0,2.00601845]
[1756912374729,1.6271926,4473.1,4473.0,2.46711845]
[1756912375931,1.6271926,4473.1,4473.0,1.77501845]
[1756912376126,1.6271926,4473.1,4473.0,1.14551845]
[1756912376432,1.6271926,4473.1,4473.0,1.68091845]
[1756912376824,1.6271926,4473.1,4473.0,2.46711845]
[1756912377225,1.6271926,4473.1,4473.0,1.37651845]
[1756912377428,1.6271926,4473.1,4473.0,1.68091845]
[1756912378327,1.6271926,4473.1,4473.0,2.46711845]
[1756912379224,0.8425926,4473.1,4473.0,2.46711845]
[1756912379425,0.53450907,4473.1,4473.0,2.00601845]
[1756912379632,0.53450907,4473.1,4473.0,2.65131845]
[1756912380038,0.53450907,4473.1,4473.0,3.7968369]
[1756912380227,0.3044,4473.2,4473.1,0.7655]
[1756912380530,1.089,4473.2,4473.1,2.46711845]
[1756912380924,0.3044,4473.2,4473.1,2.46711845]
[1756912381123,0.6411,4473.5,4473.1,2.46711845]
[1756912381324,1.30113888,4473.4,4473.3,1.0906]
[1756912381524,1.62343888,4473.4,4473.3,1.0906]
[1756912381832,1.30113888,4473.4,4473.3,1.3216]
[1756912382027,1.62343888,4473.4,4473.3,1.3216]
[1756912382228,1.62343888,4473.4,4473.3,0.3044]
[1756912382432,1.62343888,4473.4,4473.3,1.68091845]
[1756912382827,1.62343888,4473.4,4473.3,2.46711845]
[1756912383628,1.62343888,4473.4,4473.3,1.37651845]
[1756912383836,1.089,4473.1,4472.9,1.14551845]
[1756912384129,1.802165,4473.0,4472.9,1.14551845]
[1756912384331,1.802165,4473.0,4472.9,1.37651845]
[1756912384538,1.802165,4473.0,4472.9,1.68091845]
[1756912384731,1.802165,4473.0,4472.9,2.00601845]
[1756912385834,1.802165,4473.0,4472.9,2.46711845]
[1756912386238,1.802165,4473.0,4472.9,1.68091845]
[1756912386434,1.802165,4473.0,4472.9,1.37651845]
[1756912387647,1.089,4472.2,4472.1,0.3044]
[1756912387934,1.089,4472.1,4472.0,1.14551845]
[1756912388129,1.62352865,4472.1,4472.0,1.37651845]
[1756912389538,1.62352865,4472.1,4472.0,2.46711845]
[1756912391435,0.4623,4472.7,4472.0,2.19131845]
[1756912391636,0.83827718,4472.6,4472.5,1.0906]
[1756912391834,0.6406,4473.0,4472.5,2.63431845]
[1756912392138,1.247,4473.0,4472.9,1.44801845]
[1756912392338,1.78086232,4473.0,4472.9,1.67901845]
[1756912392538,1.78086232,4473.0,4472.9,0.231]
[1756912394635,1.78086232,4473.0,4472.5,0.4611]
[1756912394834,0.7569,4472.6,4472.5,1.0632]
[1756912395039,1.0682,4472.6,4472.5,1.2942]
[1756912395434,1.0682,4472.6,4472.5,0.231]
[1756912395638,1.60207252,4472.6,4472.5,0.231]
[1756912397340,0.1865,4472.0,4471.7,3.2078]
[1756912397539,0.6064,4471.8,4471.7,0.3025]
[1756912397740,0.6064,4471.8,4471.7,0.5335]
[1756912398135,1.0682,4471.8,4471.7,0.5335]
[1756912398840,1.0682,4471.8,4471.7,0.231]
[1756912399340,1.0682,4471.8,4471.7,2.65792454]
[1756912399540,0.2951,4471.8,4471.7,2.65792454]
[1756912399839,0.4618,4472.1,4471.7,2.65792454]
[1756912399840,1.0682,4472.2,4472.1,0.3025]
[1756912400035,1.60188446,4472.2,4472.1,0.5335]
[1756912400534,1.60188446,4472.2,4472.1,0.8331]
[1756912400739,1.60188446,4472.2,4472.1,1.2832]
[1756912400943,0.4618,4472.1,4471.5,0.4501]
[1756912401139,1.0682,4471.7,4471.6,0.8331]
[1756912401440,1.0682,4471.7,4471.6,1.2832]
[1756912402042,1.0682,4471.7,4471.6,2.65792454]
[1756912402548,0.6483,4472.0,4471.6,2.65792454]
[1756912402746,1.2547,4472.0,4471.9,1.97682454]
[1756912403448,1.2547,4472.0,4471.6,0.231]
[1756912403650,1.2547,4472.0,4471.7,0.231]
[1756912403941,1.2547,4472.0,4470.0,3.76657259]
[1756912403942,0.6064,4470.7,4470.6,3.2078]
[1756912404143,0.6064,4470.7,4470.6,0.5335]
[1756912404545,3.2078,4471.2,4471.1,0.6021]
[1756912404845,3.2078,4471.2,4471.1,1.2832]
[1756912405037,4.276,4471.2,4471.1,1.0522]
[1756912405347,4.276,4471.2,4471.1,0.8331]
[1756912405933,4.276,4471.2,4471.1,0.6021]
[1756912406146,4.276,4471.2,4470.2,0.4501]
[1756912406349,3.8142,4471.2,4470.2,0.4501]
[1756912406548,1.0682,4470.4,4470.3,0.5335]
[1756912407248,0.4618,4470.3,4469.9,32.6601]
[1756912407448,1.0682,4470.2,4470.1,3.5103]
[1756912407848,1.0682,4470.2,4470.1,3.7413]
[1756912408143,0.7569,4470.2,4470.1,4.491]
[1756912408342,1.0682,4470.2,4470.1,4.0409]
[1756912409341,1.0682,4470.2,4470.1,0.5335]
[1756912409649,0.6483,4470.0,4469.9,32.21]
[1756912409947,0.6483,4470.0,4469.9,32.441]
[1756912410341,0.6483,4470.0,4469.9,32.8911]
[1756912410549,0.4618,4470.0,4469.9,32.8911]
[1756912410848,4.0007,4470.5,4470.4,0.3025]
[1756912411143,4.0007,4470.5,4470.4,0.5335]
[1756912411347,4.4625,4470.5,4470.4,0.5335]
[1756912411548,4.4625,4470.5,4470.1,0.231]
[1756912411746,4.4625,4470.5,4469.9,0.4501]
[1756912411747,5.37542454,4470.5,4469.1,0.4501]
[1756912411941,0.6064,4469.1,4469.0,3.5103]
[1756912412141,1.0682,4469.1,4469.0,1.0522]
[1756912412343,1.0682,4469.1,4469.0,1.2832]
[1756912412544,1.0682,4469.1,4469.0,1.0522]
[1756912412746,1.0682,4469.1,4469.0,1.2832]
[1756912412943,1.0682,4469.1,4469.0,0.8331]
[1756912413143,1.0682,4469.1,4469.0,0.231]
[1756912413545,1.0682,4469.1,4469.0,0.8331]
[1756912413744,1.0682,4469.1,4469.0,1.2832]
[1756912414656,1.0682,4469.1,4469.0,0.8331]
[1756912415245,1.0682,4469.1,4469.0,0.6021]
[1756912415446,1.0682,4469.1,4469.0,0.231]
[1756912416248,1.0682,4469.1,4469.0,0.5335]
[1756912416654,1.0682,4469.1,4469.0,0.3025]
[1756912416848,1.0682,4469.1,4469.0,0.8331]
[1756912417058,1.0682,4469.1,4469.0,1.2832]
[1756912417560,1.0682,4469.1,4469.0,0.8331]
[1756912417755,1.0682,4469.1,4469.0,0.5335]
[1756912417951,1.0682,4469.1,4469.0,0.231]
[1756912418155,0.1865,4469.0,4468.6,32.217]
[1756912418357,0.9434,4469.0,4468.9,0.6021]
[1756912418556,1.2547,4469.0,4468.9,1.0522]
[1756912419357,0.7929,4469.0,4468.6,32.217]
[1756912419557,0.6064,4468.8,4468.6,32.217]
[1756912419803,0.4618,4468.7,4468.6,32.217]
[1756912419985,0.4618,4468.7,4468.6,32.448]
[1756912420654,0.4618,4468.7,4468.6,32.217]
[1756912420954,9.18892454,4468.7,4467.3,0.4501]
[1756912421155,1.37472454,4467.7,4467.4,0.4501]
[1756912421353,1.37472454,4467.7,4467.5,0.191]
[1756912421554,0.22384,4467.7,4467.2,0.4501]
[1756912421859,3.2078,4467.3,4467.2,0.4312]
[1756912422353,3.2078,4467.3,4466.7,0.4312]
[1756912422354,7.2078,4467.3,4466.7,0.4312]
[1756912422554,7.2078,4467.3,4466.5,0.191]
[1756912422555,3.2078,4466.8,4466.0,0.9181]
[1756912422861,3.2078,4466.3,4466.1,0.4312]
[1756912423153,3.2078,4466.3,4466.0,0.1811]
[1756912423353,3.2078,4466.3,4466.1,0.4312]
[1756912423658,3.2078,4466.3,4466.2,1.0296]
[1756912424256,3.2078,4466.8,4466.7,0.737]
[1756912424458,3.2078,4466.8,4466.2,0.4312]
[1756912424655,3.2078,4466.3,4466.1,0.4312]
[1756912424856,3.2078,4466.3,4466.0,0.1811]
[1756912425052,3.2078,4466.3,4466.0,0.6123]
[1756912425351,3.2078,4466.3,4465.6,0.4312]
[1756912425547,3.2078,4465.8,4465.6,0.4312]
[1756912426549,3.2078,4465.8,4465.5,0.1776]
[1756912426961,3.2078,4465.8,4465.5,0.6088]
[1756912427352,3.2078,4465.8,4465.6,0.4312]
[1756912427661,3.2078,4465.8,4465.5,0.1776]
[1756912427861,3.2078,4465.8,4465.6,0.4312]
[1756912428155,3.2078,4465.8,4465.5,0.1776]
[1756912428361,3.2078,4465.8,4465.6,0.4312]
[1756912429659,0.19066207,4465.7,4465.6,0.4312]
[1756912430260,0.19066207,4465.7,4465.6,0.737]
[1756912430458,0.19066207,4465.7,4465.6,0.4312]
[1756912430758,0.19066207,4465.7,4465.1,0.737]
[1756912430953,3.2078,4465.3,4465.2,1.0296]
[1756912431153,3.39846207,4465.3,4465.2,1.0296]
[1756912432562,3.39846207,4465.3,4465.2,0.737]
[1756912432965,3.39846207,4465.3,4465.2,1.0296]
[1756912434561,3.2078,4465.3,4465.2,1.0296]
[1756912435665,3.39849199,4465.3,4465.2,1.2606]
[1756912438468,3.39849199,4465.3,4465.2,1.0296]
[1756912438661,3.39849199,4465.3,4465.2,1.2606]
[1756912438968,3.94640969,4465.3,4465.2,1.2606]
[1756912439962,3.94640969,4465.3,4465.2,0.6622]
[1756912440467,3.94640969,4465.3,4465.2,1.2606]
[1756912440960,3.94640969,4465.3,4465.1,0.4312]
[1756912441159,0.73860969,4465.2,4465.1,0.4312]
[1756912442570,0.73860969,4465.2,4465.1,0.737]
[1756912444969,2.11819902,4465.2,4465.0,0.1776]
[1756912445164,0.73860969,4465.1,4465.0,0.1776]
[1756912445468,0.73860969,4465.1,4465.0,0.6088]
[1756912446164,0.73860969,4465.1,4464.8,0.4312]
[1756912446365,1.93695076,4465.0,4464.7,0.231]
[1756912446566,3.2078,4464.8,4464.7,0.6622]
[1756912446768,3.94640969,4464.8,4464.7,0.4312]
[1756912446970,3.94640969,4464.8,4464.7,1.0296]
[1756912449073,3.7557177,4464.8,4464.7,1.2606]
[1756912451175,4.95405877,4464.8,4464.7,1.2606]
[1756912451369,4.95405877,4464.8,4464.7,1.0296]
[1756912451570,4.95405877,4464.8,4464.7,1.2606]
[1756912452265,3.7557177,4464.8,4464.7,1.0296]
[1756912452465,3.7557177,4464.8,4464.7,1.2606]
[1756912454467,2.79279216,4466.4,4464.7,1.2606]
[1756912454468,1.59588123,4465.5,4465.1,0.5824]
[1756912454665,1.59588123,4465.8,4465.7,0.5824]
[1756912454972,3.2078,4466.2,4465.7,0.5824]
[1756912454973,1.59588123,4465.9,4465.8,1.0272]
[1756912455175,1.59588123,4466.2,4466.0,0.7618]
[1756912455470,5.20265154,4466.7,4466.0,0.7618]
[1756912455471,4.80368123,4466.7,4466.5,0.6242]
[1756912455663,3.2078,4466.7,4466.6,2.40671552]
[1756912455867,4.41512514,4466.7,4466.6,2.17571552]
[1756912456171,1.20732514,4466.8,4466.7,0.2915]
[1756912456373,4.41512514,4466.8,4466.7,0.4448]
[1756912456669,7.2078,4466.8,4465.8,0.231]
[1756912456969,1.20627687,4465.9,4465.7,0.231]
[1756912457184,1.20632738,4465.9,4465.7,0.231]
[1756912457478,1.20632738,4465.9,4465.7,0.6758]
[1756912458076,4.35631552,4466.0,4465.3,0.231]
[1756912458077,4.0,4465.8,4465.3,0.231]
[1756912458378,4.0,4465.8,4464.6,0.4448]
[1756912458379,3.2078,4465.4,4464.6,0.4448]
[1756912458577,1.60836916,4465.6,4464.5,0.4104]
[1756912458578,3.2078,4464.9,4464.5,0.7019]
[1756912458776,3.2078,4464.9,4464.6,0.4448]
[1756912458971,3.2078,4464.9,4464.2,0.4448]
[1756912458972,2.35497782,4464.8,4464.2,0.4448]
[1756912459173,1.14851552,4464.5,4464.3,0.231]
[1756912459372,2.35506904,4464.5,4464.3,0.231]
[1756912459568,1.20655352,4464.6,4464.3,0.231]
[1756912459779,1.20655352,4464.6,4464.5,0.6242]
[1756912460278,4.35631552,4464.8,4464.3,1.82431552]
[1756912460475,1.20625538,4464.5,4464.3,0.6758]
[1756912461881,1.20625538,4464.5,4464.4,0.4448]
[1756912462179,1.20625538,4464.6,4464.4,0.4448]
[1756912462582,1.20625538,4464.6,4464.5,0.9157]
[1756912462772,1.20625538,4464.6,4464.5,1.2066]
[1756912462981,1.20625538,4464.6,4464.5,0.6242]
[1756912463282,1.20625538,4464.6,4464.5,0.231]
[1756912464381,1.20625538,4464.7,4464.6,0.4448]
[1756912464882,1.20625538,4464.7,4464.6,1.0272]
[1756912465079,4.41405538,4464.8,4464.6,1.0272]
[1756912465281,3.2078,4464.8,4464.7,0.7363]
[1756912466176,3.2078,4464.8,4464.7,1.0272]
[1756912466485,3.73855232,4464.8,4464.7,1.0272]
[1756912466880,3.73855232,4464.8,4464.7,1.2582]
[1756912467088,3.73855232,4464.8,4464.7,0.9673]
[1756912467586,3.73855232,4464.8,4464.7,0.7363]
[1756912467786,3.73855232,4464.8,4464.7,0.6758]
[1756912468487,3.73855232,4464.8,4464.7,0.4448]
[1756912468985,3.73855232,4464.8,4464.7,1.0272]
[1756912469186,3.73855232,4464.8,4464.7,0.7363]
[1756912469381,3.73855232,4464.8,4464.7,0.9673]
[1756912469582,3.73855232,4464.8,4464.7,0.7363]
[1756912470884,3.73855232,4464.8,4464.7,1.0272]
[1756912472388,3.73855232,4464.8,4464.7,1.2582]
[1756912472783,3.73855232,4464.8,4464.7,1.0272]
[1756912473085,3.73855232,4464.8,4464.7,0.7363]
[1756912474785,3.73855232,4464.8,4464.7,1.0272]
[1756912474991,1.20625538,4465.8,4465.7,0.2915]
[1756912474992,3.2078,4465.8,4465.7,0.2915]
[1756912475190,3.71955145,4465.8,4465.7,0.7363]
[1756912475490,3.71955145,4465.8,4465.7,1.0272]
[1756912477785,3.71955145,4465.8,4465.7,0.4448]
[1756912477991,3.71955145,4465.8,4465.5,0.6242]
[1756912478193,0.51175145,4465.7,4465.5,0.6242]
[1756912478387,3.2078,4465.8,4465.5,0.6242]
[1756912478584,0.51164275,4465.7,4465.5,0.6242]
[1756912478786,3.2078,4465.8,4465.6,0.4448]
[1756912479089,3.2078,4465.8,4465.6,1.0272]
[1756912479090,0.51163846,4465.7,4465.6,1.0272]
[1756912479394,3.2078,4465.8,4465.7,0.4448]
[1756912479585,3.7194047,4465.8,4465.7,0.4448]
[1756912480186,3.7194047,4465.8,4465.7,0.7363]
[1756912480383,3.2078,4466.3,4465.7,1.0272]
[1756912480584,3.2078,4466.3,4466.2,1.0272]
[1756912480893,2.7325,4466.3,4466.2,1.2582]
[1756912481085,3.2078,4467.2,4466.3,0.4448]
[1756912481286,3.8075,4467.2,4467.1,0.7363]
[1756912481589,4.31872108,4467.2,4467.1,0.7363]
[1756912481994,4.76372108,4467.2,4467.1,0.7363]
[1756912482190,4.31872108,4467.2,4467.1,0.7363]
[1756912482491,4.76372108,4467.2,4466.6,0.4265]
[1756912482691,0.445,4466.6,4466.4,0.231]
[1756912482990,1.056,4466.2,4465.3,3.2078]
[1756912483297,1.056,4466.2,4465.7,0.4265]
[1756912483495,1.056,4466.2,4465.6,0.231]
[1756912483799,1.056,4466.2,4465.7,0.4265]
[1756912483983,1.056,4466.2,4465.9,0.4265]
[1756912484189,1.056,4466.2,4465.8,0.231]
[1756912484388,0.445,4466.1,4465.9,0.6575]
[1756912484592,0.611,4466.0,4465.9,0.948]
[1756912484791,0.611,4466.0,4465.9,1.2578]
[1756912484984,3.6528,4466.5,4466.0,0.6065]
[1756912485190,4.2638,4466.5,4466.4,0.717]
[1756912485387,3.8188,4466.5,4466.1,0.4265]
[1756912485591,1.056,4466.2,4466.1,0.4265]
[1756912487096,1.056,4466.2,4466.1,0.717]
[1756912487303,0.611,4466.2,4466.1,0.717]
[1756912488304,1.056,4466.2,4466.1,0.717]
[1756912488604,1.056,4466.2,4466.1,0.4265]
[1756912489801,1.056,4466.2,4466.1,0.717]
[1756912490495,0.611,4466.2,4466.1,0.717]
[1756912491497,1.056,4465.8,4465.7,0.231]
[1756912491698,1.056,4465.8,4465.1,32.265]
[1756912491699,0.445,4465.7,4465.4,0.231]
[1756912491896,3.2078,4465.9,4465.0,0.4265]
[1756912491897,0.7547,4465.5,4465.0,0.4265]
[1756912492100,0.7547,4465.5,4464.8,0.231]
[1756912492101,0.611,4465.1,4464.8,0.231]
[1756912492295,3.2078,4465.3,4464.8,0.6575]
[1756912492496,1.056,4464.9,4464.8,0.6575]
[1756912492899,1.056,4464.9,4464.8,0.948]
[1756912493396,1.056,4464.9,4464.8,0.717]
[1756912494801,1.056,4464.9,4464.6,0.4265]
[1756912494998,0.611,4464.9,4464.8,0.717]
[1756912497908,0.611,4464.9,4464.8,1.0268]
[1756912498105,0.611,4464.2,4464.1,0.717]
[1756912498708,1.056,4464.2,4464.1,0.717]
[1756912500702,0.611,4464.2,4464.1,1.0268]
[1756912501809,0.611,4464.2,4464.1,1.2578]
[1756912502211,0.611,4464.2,4464.1,0.4265]
[1756912502411,1.056,4464.2,4464.1,0.4265]
[1756912502603,0.445,4464.1,4464.0,0.4265]
[1756912502804,1.056,4464.1,4464.0,0.4265]
[1756912503413,1.056,4464.1,4464.0,0.717]
[1756912503609,3.2078,4464.5,4464.1,0.4265]
[1756912503905,3.2078,4464.5,4464.4,1.0268]
[1756912504107,3.5131,4464.5,4464.4,1.0268]
[1756912504314,3.8188,4464.5,4464.4,1.0268]
[1756912504915,3.5131,4464.5,4464.4,1.2578]
[1756912505105,3.2078,4464.5,4464.4,1.2578]
[1756912506413,3.5131,4465.0,4464.9,1.0268]
[1756912506708,3.8188,4465.0,4464.9,1.0268]
[1756912507017,4.2638,4465.0,4464.9,0.717]
[1756912507404,0.611,4464.7,4464.6,0.717]
[1756912507619,1.056,4464.7,4464.6,0.948]
[1756912507904,3.2078,4465.0,4464.7,0.4265]
[1756912508106,0.611,4464.8,4464.7,1.0268]
[1756912508509,0.3053,4464.8,4464.7,1.0268]
[1756912509106,3.2078,4465.0,4464.8,0.4265]
[1756912509306,3.5131,4465.0,4464.9,1.0268]
[1756912510013,3.8188,4465.0,4464.9,1.0268]
[1756912510815,3.2078,4465.6,4464.9,1.0268]
[1756912511011,3.2078,4466.3,4465.5,1.2068]
[1756912511205,1.12430503,4466.2,4466.1,0.2905]
[1756912511509,1.56930503,4466.2,4466.1,0.717]
[1756912511916,1.56930503,4466.2,4466.1,0.4265]
[1756912512214,1.12430503,4466.2,4465.6,0.231]
[1756912512417,3.4982,4465.7,4465.6,1.2763]
[1756912512610,3.2078,4465.7,4465.6,1.2763]
[1756912513414,3.2078,4466.3,4466.2,0.588]
[1756912513619,3.2078,4466.3,4466.2,1.2763]
[1756912514314,3.4982,4467.0,4466.9,1.0453]
[1756912515716,3.2078,4467.6,4466.9,1.0453]
[1756912515917,3.2078,4468.1,4467.5,5.23823221]
[1756912516120,3.2078,4468.1,4468.0,1.2132]
[1756912516313,3.4982,4468.1,4468.0,1.2132]
[1756912516811,0.3649,4469.0,4468.1,0.4573]
[1756912516812,3.2078,4468.9,4468.1,0.4573]
[1756912517013,1.10694778,4468.8,4468.7,0.7452]
[1756912517212,1.53524778,4468.8,4468.2,0.6883]
[1756912517415,1.0225,4468.8,4468.3,0.4573]
[1756912517614,0.5942,4468.8,4468.7,0.7452]
[1756912517810,1.0225,4468.8,4468.7,0.4573]
[1756912518216,1.0225,4468.8,4468.7,0.7452]
[1756912518416,0.5942,4468.8,4468.7,0.7452]
[1756912518810,3.2078,4468.9,4468.7,0.588]
[1756912519018,3.2078,4469.4,4469.0,0.1679]
[1756912519321,0.2904,4469.1,4469.0,0.9869]
[1756912519522,0.5942,4469.1,4469.0,0.9869]
[1756912519720,0.5942,4469.1,4469.0,1.4442]
[1756912520623,0.5942,4469.1,4469.0,1.2132]
[1756912521024,0.5942,4468.4,4468.3,1.0453]
[1756912521223,0.5942,4468.4,4468.3,1.2753]
[1756912521520,3.2078,4468.8,4468.5,0.1679]
[1756912521721,3.4982,4468.8,4468.7,1.0453]
[1756912522218,3.802,4468.8,4468.7,1.2753]
[1756912523328,3.4982,4468.8,4468.7,1.2753]
[1756912523524,3.2078,4468.8,4468.7,1.2753]
[1756912524717,3.4982,4468.8,4468.7,1.2753]
[1756912525014,3.4982,4468.8,4468.7,1.0453]
[1756912525315,3.4982,4468.8,4468.7,1.2753]
[1756912525617,3.4982,4468.8,4468.7,1.0453]
[1756912525926,4.2303,4468.8,4468.7,0.6873]
[1756912526319,3.802,4468.8,4468.7,1.2753]
[1756912527823,3.4982,4468.8,4468.7,1.2753]
[1756912528023,3.802,4468.8,4468.7,1.0453]
[1756912528321,3.2078,4469.3,4469.0,0.1679]
[1756912528522,3.4982,4469.3,4469.2,0.588]
[1756912528719,0.1437,4470.5,4469.5,0.1679]
[1756912528720,3.2078,4469.8,4469.5,0.1679]
[1756912529021,0.4283,4470.2,4469.6,0.4573]
[1756912529218,3.802,4469.8,4469.7,1.0453]
[1756912529525,4.2303,4469.8,4469.7,0.9752]
[1756912531031,3.802,4469.8,4469.7,0.23]
[1756912531215,3.802,4469.8,4469.2,0.4573]
[1756912531415,3.802,4469.8,4469.3,0.23]
[1756912531621,0.5942,4469.4,4469.3,0.6873]
[1756912531821,1.0225,4469.4,4469.3,0.6873]
[1756912532729,1.0225,4469.4,4469.3,0.23]
[1756912533129,1.0225,4469.4,4469.3,0.9752]
[1756912533330,0.5942,4469.4,4469.3,0.9752]
[1756912533627,0.5942,4469.4,4469.3,1.2753]
[1756912533825,3.4982,4469.8,4469.7,0.2879]
[1756912534023,0.2904,4469.8,4469.7,1.0453]
[1756912534222,3.2078,4470.3,4469.7,0.588]
[1756912534431,0.2904,4470.1,4470.0,1.2132]
[1756912534625,3.2078,4470.3,4470.1,0.4573]
[1756912534820,3.4982,4470.3,4470.2,1.0453]
[1756912535129,3.4982,4470.3,4469.9,0.23]
[1756912535130,1.0225,4470.0,4469.9,0.23]
[1756912535425,1.0225,4470.0,4469.8,0.4573]
[1756912535623,1.0225,4469.9,4469.8,0.6873]
[1756912536025,1.0225,4469.9,4469.3,0.4573]
[1756912536236,1.0225,4469.4,4469.3,0.4573]
[1756912536534,0.5942,4468.8,4468.7,0.4573]
[1756912536832,1.0225,4468.8,4468.7,0.6873]
[1756912537331,1.0225,4468.8,4468.7,0.23]
[1756912538436,3.2078,4468.9,4468.8,0.4573]
[1756912538624,3.4982,4468.9,4468.8,1.2753]
[1756912538826,3.802,4468.9,4468.8,1.2753]
[1756912539027,0.5942,4468.7,4468.6,0.23]
[1756912539227,1.0225,4468.7,4468.6,0.23]
[1756912539529,0.5942,4468.7,4468.6,0.9752]
[1756912539922,0.5942,4468.7,4468.6,1.2753]
[1756912540632,0.5942,4468.7,4468.6,0.7452]
[1756912540827,1.0225,4468.7,4468.6,0.6873]
[1756912541028,0.5942,4468.7,4468.0,0.1679]
[1756912541223,0.5942,4468.7,4468.1,0.6873]
[1756912541426,1.0225,4468.3,4468.2,0.6873]
[1756912541735,0.9711,4467.9,4467.8,32.7009]
[1756912542231,0.9711,4467.9,4467.8,32.9309]
[1756912542830,3.2078,4468.3,4468.2,0.5798]
[1756912543030,3.4869,4468.8,4468.7,0.5798]
[1756912543236,4.2778247,4468.8,4468.7,1.0237]
[1756912543833,4.6907247,4468.8,4468.7,0.4439]
[1756912544336,4.6907247,4468.8,4468.7,0.9685]
[1756912544540,4.2778247,4468.8,4468.7,1.2537]
[1756912545431,4.2778247,4468.8,4468.7,1.0237]
[1756912545736,4.6907247,4468.8,4468.7,0.23]
[1756912545933,4.6907247,4468.8,4468.7,0.9685]
[1756912546331,4.6907247,4468.8,4468.7,0.7385]
[1756912546834,4.2778247,4468.8,4468.7,1.0237]
[1756912547136,0.5118247,4468.8,4468.7,1.0237]
[1756912547337,3.4869,4469.6,4469.5,1.1996]
[1756912547531,3.72105673,4469.6,4469.5,1.4296]
[1756912547832,3.72105673,4469.6,4468.7,0.6739]
[1756912547833,4.27925673,4469.6,4468.7,0.6739]
[1756912548137,0.9711,4468.8,4468.7,0.23]
[1756912548331,1.48435673,4468.8,4468.7,0.5246]
[1756912548529,1.48435673,4468.8,4468.7,0.7385]
[1756912548730,1.48435673,4468.8,4468.7,0.9685]
[1756912549936,1.07145673,4468.8,4468.7,1.2537]
[1756912551137,0.51325673,4468.8,4468.7,5.47748]
[1756912551339,0.51325673,4469.2,4468.7,5.47748]
[1756912551633,3.4869,4469.7,4469.6,1.0237]
[1756912551934,4.69219535,4469.7,4469.0,0.1759]
[1756912552142,0.5582,4469.2,4469.1,1.0237]
[1756912552435,1.07149535,4469.2,4469.1,1.2537]
[1756912553642,1.48439535,4469.2,4469.1,0.6739]
[1756912553833,1.48439535,4469.2,4469.1,0.23]
[1756912554135,1.105,4469.0,4468.9,0.23]
[1756912554333,1.61829535,4469.0,4468.9,0.23]
[1756912555139,1.20539535,4469.0,4468.6,0.4439]
[1756912555335,0.5582,4468.2,4468.1,0.4439]
[1756912555535,1.48439535,4468.2,4468.1,0.4439]
[1756912556338,0.79239535,4468.2,4468.1,1.0237]
[1756912556537,0.51329535,4468.2,4468.1,1.0237]
[1756912556739,0.2791,4468.3,4468.2,0.7385]
[1756912556944,0.5582,4468.3,4468.2,0.7385]
[1756912557145,1.48447213,4468.3,4468.2,0.6739]
[1756912557447,0.5582,4468.0,4467.5,0.6198]
[1756912557743,0.92627213,4467.9,4467.5,0.6198]
[1756912557939,0.92627213,4467.9,4467.8,32.9309]
[1756912558543,1.48447213,4467.9,4467.8,0.4439]
[1756912558737,1.48447213,4467.9,4467.8,0.9685]
[1756912559144,1.48447213,4467.9,4467.8,0.7385]
[1756912559145,1.07157213,4467.9,4467.8,0.7385]
[1756912559343,1.07157213,4467.9,4467.8,1.0237]
[1756912559542,1.07157213,4467.9,4467.8,0.7385]
[1756912559747,0.9711,4467.7,4467.6,0.4439]
[1756912560048,1.48447213,4467.7,4467.6,0.6739]
[1756912560246,1.48447213,4467.7,4467.6,0.9685]
[1756912560744,5.48447213,4467.7,4465.6,4.4594429]
[1756912560947,0.5582,4466.9,4466.8,0.7385]
[1756912561845,1.06793239,4466.9,4466.6,0.4439]
[1756912562043,0.9711,4466.2,4466.1,0.7385]